bitfinex-derivatives/quotes_ETHF0:USTF0_20251001
["timestamp","ask_amount","ask_price","bid_price","bid_amount"]
[1759309064805,3.2078,4297.0,4296.9,3.7093]
[1759309065109,3.67776215,4297.0,4296.9,3.7093]
[1759309066510,0.46996215,4297.0,4296.9,3.7093]
[1759309067402,3.2078,4297.5,4297.4,0.41869]
[1759309067607,3.2078,4297.5,4297.4,4.12799]
[1759309067805,0.00277574,4297.7,4297.6,0.41867]
[1759309068004,0.00277574,4297.7,4297.6,4.12797]
[1759309069510,3.3704,4297.6,4297.5,0.41868]
[1759309069707,3.21057574,4297.7,4297.6,3.3333]
[1759309070106,0.00277574,4297.7,4297.6,3.3333]
[1759309071111,5.74e-06,4297.7,4297.6,3.3333]
[1759309071307,3.2078,4298.7,4298.6,0.41858]
[1759309071505,3.2078,4298.7,4298.6,4.12688]
[1759309072310,3.20946148,4298.7,4298.6,3.75188]
[1759309072509,3.20946148,4298.7,4298.6,3.3333]
[1759309072809,3.20946148,4298.7,4298.6,3.7073]
[1759309073206,3.20946148,4298.7,4298.6,3.7101]
[1759309073608,6.47526148,4298.7,4298.6,0.374]
[1759309073809,3.20946148,4298.7,4298.6,3.7101]
[1759309074602,3.22125916,4298.7,4298.6,3.7101]
[1759309074807,3.22125916,4298.7,4297.2,10.46807]
[1759309075013,3.22125916,4298.7,4276.2,0.327]
[1759309075205,0.41932,4291.1,4288.2,0.6589]
[1759309075401,3.2658,4290.4,4288.8,1.2653]
[1759309075600,0.01179768,4289.6,4288.9,0.374]
[1759309076208,3.2078,4289.1,4288.9,0.37675974]
[1759309076609,3.21017975,4289.6,4288.9,0.37675974]
[1759309076816,0.00237975,4289.6,4289.0,5.9733]
[1759309077016,3.2078,4289.2,4289.1,0.374]
[1759309077709,3.2078,4289.2,4289.1,1.3473]
[1759309077907,3.2078,4289.2,4289.1,0.9733]
[1759309078107,3.2078,4289.2,4289.1,0.374]
[1759309078511,3.2078,4289.2,4289.1,1.3473]
[1759309079502,3.82038882,4289.2,4289.1,1.3473]
[1759309081119,0.4195,4289.0,4288.2,1.39287]
[1759309081320,0.4195,4289.0,4287.9,36.36232171]
[1759309081321,6.4736,4288.6,4288.3,0.374]
[1759309081618,3.2078,4288.6,4288.5,1.39284]
[1759309081818,3.2078,4288.6,4288.5,6.76684]
[1759309082116,3.2078,4289.3,4288.7,0.41953]
[1759309082313,0.60806081,4289.2,4288.8,36.343]
[1759309082514,0.60806081,4289.1,4288.9,0.41952]
[1759309082709,3.2078,4289.3,4289.0,0.374]
[1759309082912,0.60781467,4289.2,4289.0,0.374]
[1759309083112,0.60781467,4289.1,4289.0,0.374]
[1759309083323,0.60781467,4289.1,4288.9,0.41952]
[1759309083520,6.4736,4289.3,4289.0,0.374]
[1759309083816,0.00237975,4289.6,4289.4,0.41946]
[1759309084016,0.00237975,4289.6,4289.5,0.374]
[1759309084412,0.4195,4289.1,4288.4,0.41956]
[1759309084621,3.2078,4288.6,4288.5,0.42159299]
[1759309084812,3.2078,4288.6,4288.5,0.79459299]
[1759309085012,3.2078,4288.6,4288.5,1.76789299]
[1759309085809,3.2078,4288.6,4288.5,1.39489299]
[1759309086015,3.2078,4288.6,4288.5,38.12089299]
[1759309086218,6.4736,4289.4,4289.3,0.41948]
[1759309086420,6.4736,4289.4,4289.3,0.79248]
[1759309087307,3.2078,4289.4,4289.3,5.79248]
[1759309088116,6.4736,4289.4,4289.3,0.79248]
[1759309088517,6.4736,4289.4,4289.3,0.41948]
[1759309088909,6.4736,4289.4,4289.3,0.373]
[1759309089114,3.2658,4289.3,4289.0,0.41951]
[1759309089317,1.315,4289.0,4288.9,0.41952]
[1759309089519,4.5808,4289.0,4288.9,0.79252]
[1759309089711,3.2658,4289.0,4288.9,0.79252]
[1759309090619,6.4736,4289.4,4289.3,0.41947]
[1759309090824,6.4736,4289.4,4289.3,0.79247]
[1759309091123,3.26817975,4289.6,4289.5,0.41946]
[1759309092222,3.2658,4289.5,4289.4,0.41946]
[1759309092423,1.315,4289.5,4289.4,0.373]
[1759309092923,3.26817975,4289.6,4289.5,0.41946]
[1759309095023,3.26817975,4289.6,4289.5,0.79246]
[1759309095218,3.26817975,4289.6,4289.5,0.373]
[1759309095527,4.5808,4289.0,4288.7,1.04885]
[1759309095726,4.5808,4289.0,4288.9,0.41952]
[1759309096324,4.5808,4289.0,4288.9,0.79152]
[1759309097122,3.2658,4289.0,4288.9,0.79152]
[1759309097318,3.86215843,4289.0,4288.9,0.79152]
[1759309097929,0.59635843,4289.0,4288.9,0.79152]
[1759309098324,0.59635843,4289.0,4288.9,6.76482]
[1759309098524,4.5808,4289.5,4289.4,0.41947]
[1759309098820,3.2658,4289.4,4289.3,0.41948]
[1759309099020,3.86309175,4289.4,4289.3,0.79148]
[1759309099732,3.86309175,4289.4,4289.3,0.372]
[1759309100024,3.2658,4289.2,4288.5,0.00203299]
[1759309100227,3.2658,4288.6,4288.5,0.00203299]
[1759309100418,3.86309175,4288.6,4288.5,0.00203299]
[1759309102337,3.86309175,4288.6,4288.5,0.37403299]
[1759309102528,3.86309175,4288.6,4288.5,0.00203299]
[1759309102726,3.86309175,4288.6,4288.5,0.37403299]
[1759309103324,3.86309175,4288.6,4288.5,0.00203299]
[1759309103529,3.86309175,4288.6,4288.5,0.37403299]
[1759309104729,1.2891,4288.0,4287.9,0.02332171]
[1759309104924,8.29959175,4288.0,4287.9,0.81493171]
[1759309105726,8.29959175,4288.0,4287.9,0.81703163]
[1759309105925,8.29959175,4288.0,4287.9,0.81603163]
[1759309106631,8.29959175,4288.0,4287.9,0.02542163]
[1759309106834,8.29959175,4288.0,4287.9,0.39642163]
[1759309107135,8.29959175,4288.0,4287.9,0.02542163]
[1759309107336,13.29959175,4288.0,4287.9,0.371]
[1759309107824,8.29959175,4288.0,4287.9,0.371]
[1759309108026,8.71920175,4288.0,4287.6,0.41964]
[1759309108234,3.2917,4287.8,4287.6,0.41964]
[1759309108536,3.88899175,4287.7,4287.6,0.42174481]
[1759309108736,3.88899175,4287.7,4287.6,0.79274481]
[1759309109128,3.88899175,4287.7,4287.6,0.42174481]
[1759309109323,3.88899175,4287.7,4287.6,0.79274481]
[1759309110636,3.88899175,4287.7,4287.6,0.42174481]
[1759309110832,3.88899175,4287.7,4287.6,0.00210481]
[1759309111034,3.88899175,4287.7,4287.6,0.37310481]
[1759309111437,3.88899175,4287.7,4287.6,0.371]
[1759309112436,3.88899175,4287.7,4287.6,0.3740191]
[1759309113432,3.88899175,4287.7,4287.6,0.0030191]
[1759309113632,3.88899175,4287.7,4287.6,0.3730191]
[1759309114028,0.59729175,4287.7,4287.6,7.1229191]
[1759309114334,0.59729175,4287.7,4287.6,6.7529191]
[1759309114532,3.88899175,4287.7,4287.6,0.3730191]
[1759309115630,3.88899175,4287.7,4287.6,0.0030191]
[1759309115836,3.88899175,4287.7,4287.6,0.3730191]
[1759309116037,3.88899175,4287.7,4287.6,0.39002869]
[1759309116238,3.88899175,4287.7,4287.6,0.02002869]
[1759309116439,3.88899175,4287.7,4287.6,0.39002869]
[1759309118831,3.2917,4288.3,4287.7,1.7499]
[1759309119030,3.2078,4288.5,4288.4,0.41957]
[1759309119229,6.4995,4288.5,4288.4,0.78957]
[1759309120235,6.4995,4288.5,4288.4,0.80657959]
[1759309120942,7.722,4288.5,4288.4,0.80657959]
[1759309121636,7.722,4288.5,4288.4,0.01700959]
[1759309121838,7.722,4288.5,4288.4,0.38600959]
[1759309123244,6.01905,4288.5,4288.4,5.38600959]
[1759309123435,7.722,4289.0,4288.9,0.41953]
[1759309123740,7.722,4289.0,4288.9,0.78853]
[1759309124143,7.722,4289.0,4288.9,0.80553959]
[1759309124342,6.46368,4289.0,4288.9,0.43653959]
[1759309124543,2.81257,4289.0,4288.9,0.80553959]
[1759309124848,2.34036,4289.0,4288.9,0.80553959]
[1759309125239,4.4303,4289.5,4289.4,0.41948]
[1759309125541,2.41087,4289.5,4289.4,0.78848]
[1759309125742,1.09101,4289.5,4289.4,0.78848]
[1759309125940,9.75e-06,4289.6,4289.4,0.78848]
[1759309126238,3.2078,4291.1,4290.9,0.41933]
[1759309126444,3.2078,4291.1,4290.5,4.25623]
[1759309126633,0.49482,4291.0,4290.8,0.41934]
[1759309126938,3.2078,4291.6,4291.4,0.41928]
[1759309127140,3.20981065,4291.6,4291.5,0.38500959]
[1759309127444,6.50151065,4291.6,4291.5,0.38500959]
[1759309128242,6.03055065,4291.6,4291.5,0.38500959]
[1759309128443,5.54488065,4291.6,4291.5,0.38500959]
[1759309128646,3.29371065,4291.6,4291.5,0.38500959]
[1759309128948,3.2078,4292.1,4291.5,4.69497959]
[1759309129244,3.2078,4292.1,4291.9,0.41923]
[1759309129547,3.2078,4292.1,4292.0,0.368]
[1759309129734,3.21015366,4292.1,4292.0,0.368]
[1759309130240,3.21015366,4292.1,4292.0,0.38500959]
[1759309130443,2.24034366,4292.1,4292.0,0.38500959]
[1759309130645,3.66e-06,4292.1,4292.0,0.01700959]
[1759309130842,3.66e-06,4292.1,4292.0,3.64680959]
[1759309131239,0.7153,4293.0,4292.0,8.13590959]
[1759309131446,3.2078,4293.2,4292.8,0.41915]
[1759309131740,3.2078,4293.2,4292.8,0.78715]
[1759309132139,3.2078,4293.2,4292.0,4.50610959]
[1759309132140,5.022,4292.9,4292.7,0.41915]
[1759309132347,0.02381473,4292.9,4292.8,0.01700959]
[1759309132743,5.02381473,4292.9,4292.8,0.01700959]
[1759309133343,8.09461473,4292.9,4292.8,0.01700959]
[1759309133852,8.09461473,4292.9,4292.8,0.38400959]
[1759309134042,8.09461473,4292.9,4292.8,0.01700959]
[1759309135952,3.09461473,4292.9,4292.8,0.01700959]
[1759309136749,0.02381473,4292.9,4292.8,3.39250959]
[1759309137552,0.02381473,4292.9,4292.8,3.75850959]
[1759309137757,4.73e-06,4292.9,4292.8,3.75850959]
[1759309138257,4.73e-06,4292.9,4292.8,8.76037721]
[1759309139258,4.73e-06,4292.9,4292.8,8.39437721]
[1759309139461,4.73e-06,4292.9,4292.8,45.12237721]
[1759309142658,3.2078,4294.2,4294.1,3.3755]
[1759309142853,3.0708,4294.6,4294.5,0.41898]
[1759309143053,3.0708,4294.6,4294.5,0.78398]
[1759309143361,3.0708,4294.6,4294.5,0.80285721]
[1759309143863,3.07320332,4294.6,4294.5,0.38653455]
[1759309144053,3.07320332,4294.6,4294.5,0.02153455]
[1759309144258,8.07320332,4294.6,4294.5,0.38653455]
[1759309144651,8.49217332,4294.6,4294.5,0.80551455]
[1759309145157,8.49217332,4294.6,4294.5,0.38653455]
[1759309145356,8.49217332,4294.6,4294.5,0.00265734]
[1759309145661,8.49217332,4294.6,4293.2,4.25557]
[1759309145662,3.48979,4294.4,4293.2,4.25557]
[1759309145860,0.6708,4294.0,4293.9,0.41904]
[1759309146063,0.6708,4294.0,4293.9,0.78404]
[1759309146263,5.6708,4294.0,4293.9,0.78404]
[1759309146464,5.6708,4294.0,4293.9,0.78648694]
[1759309146465,8.0708,4294.0,4293.9,0.78648694]
[1759309146758,6.2786,4294.2,4294.1,0.41902]
[1759309147256,3.2078,4294.2,4294.1,0.41902]
[1759309147460,3.2078,4294.2,4294.1,3.79452]
[1759309148167,0.00240332,4294.6,4294.1,3.79452]
[1759309148168,3.07320332,4294.6,4294.5,0.41898]
[1759309148457,3.07320332,4294.6,4294.5,0.78298]
[1759309148658,3.07320332,4294.6,4294.5,0.41898]
[1759309148854,0.6708,4294.5,4293.9,0.00244694]
[1759309149060,6.2786,4294.2,4293.9,0.00244694]
[1759309149262,3.0708,4294.1,4293.9,0.00244694]
[1759309149452,3.0708,4294.1,4294.0,0.41903]
[1759309150663,3.2078,4294.2,4294.0,3.79453]
[1759309150867,3.2078,4294.2,4294.1,0.364]
[1759309151066,3.2078,4294.2,4294.1,3.7395]
[1759309151364,3.0708,4294.5,4294.1,0.364]
[1759309151566,3.0708,4294.5,4294.4,0.41899]
[1759309152059,5.6708,4294.5,4294.4,0.364]
[1759309152459,6.08978,4294.5,4294.4,0.364]
[1759309152661,9.16058,4294.5,4294.4,0.364]
[1759309153064,3.0708,4294.4,4294.3,0.364]
[1759309153376,3.48979,4294.4,4294.3,0.364]
[1759309153660,3.48983,4294.0,4293.9,0.00244694]
[1759309153866,3.48983,4294.0,4293.9,0.36544694]
[1759309153867,6.69763,4294.0,4293.9,0.36544694]
[1759309154260,6.2786,4294.0,4293.9,0.36544694]
[1759309155260,3.2078,4294.0,4293.9,3.74094694]
[1759309155463,3.0708,4294.5,4294.4,0.41899]
[1759309155660,0.00240332,4294.6,4294.5,3.3755]
[1759309155865,0.00240332,4294.6,4294.5,3.7385]
[1759309156258,3.07320332,4294.6,4294.5,0.363]
[1759309156459,3.0708,4296.1,4295.9,0.41884]
[1759309156760,3.62655,4296.9,4296.7,0.41876]
[1759309156962,6.2786,4296.9,4296.8,0.363]
[1759309157360,3.20998371,4296.9,4296.8,0.363]
[1759309157660,6.28078371,4296.9,4296.8,0.363]
[1759309157970,6.28078371,4296.9,4296.4,3.3755]
[1759309157971,3.48956,4296.8,4296.4,3.3755]
[1759309158262,3.0708,4296.8,4296.6,0.41877]
[1759309158465,3.48956,4296.8,4296.6,0.41877]
[1759309158766,3.20998371,4296.9,4296.4,0.78079]
[1759309158767,3.0708,4296.5,4296.4,0.78079]
[1759309158966,3.0708,4296.3,4296.0,3.3755]
[1759309159160,0.41882,4296.2,4296.1,0.362]
[1759309159365,3.1544,4296.8,4296.2,0.41882]
[1759309159565,3.20998371,4296.9,4296.2,3.3338]
[1759309160266,0.41879,4296.5,4296.3,3.6958]
[1759309160463,3.57319,4296.5,4296.3,3.6958]
[1759309161168,3.57319,4296.5,4296.4,0.362]
[1759309161463,3.57321,4296.3,4296.1,0.41882]
[1759309161667,3.57321,4296.3,4296.2,0.362]
[1759309161862,0.41881,4296.3,4296.2,0.362]
[1759309162069,3.57321,4296.3,4296.2,0.362]
[1759309162266,3.6266,4296.4,4296.2,0.362]
[1759309162464,3.6266,4296.4,4295.2,3.2078]
[1759309162769,1.2343,4291.0,4288.6,3.2078]
[1759309162966,0.41961,4288.1,4288.0,1.05533]
[1759309163170,2.72662676,4288.1,4288.0,0.127]
[1759309163368,0.66954988,4288.1,4288.0,0.127]
[1759309163559,1.08915988,4288.1,4288.0,0.127]
[1759309163762,1.09170728,4288.1,4288.0,0.12950285]
[1759309163961,1.09170728,4288.1,4288.0,0.00250285]
[1759309163962,4.29950728,4288.1,4288.0,0.00250285]
[1759309164263,4.29950728,4288.1,4288.0,0.36350285]
[1759309164464,4.29950728,4288.1,4288.0,3.30110285]
[1759309164768,4.29950728,4288.1,4288.0,3.66210285]
[1759309165164,5.95367482,4288.1,4288.0,3.66210285]
[1759309165968,4.29950728,4288.1,4288.0,3.66210285]
[1759309167068,3.87989728,4288.1,4288.0,4.90570285]
[1759309167974,1.65416754,4289.2,4288.0,4.90570285]
[1759309167975,1.65416754,4290.0,4289.5,1.2436]
[1759309168174,0.41944,4289.8,4289.7,3.2986]
[1759309168371,0.41944,4289.8,4289.7,3.6596]
[1759309168670,3.2078,4290.1,4289.8,3.2986]
[1759309169178,3.2101907,4290.1,4290.0,4.5422]
[1759309170577,3.2101907,4290.1,4290.0,9.5422]
[1759309171378,3.2101907,4290.1,4290.0,4.9032]
[1759309172870,3.2101907,4290.1,4290.0,4.92020505]
[1759309173984,3.2101907,4290.1,4290.0,9.92020505]
[1759309174379,3.2101907,4290.1,4290.0,4.92020505]
[1759309174679,0.0023907,4290.1,4290.0,9.92020505]
[1759309175379,0.0023907,4290.1,4290.0,9.55920505]
[1759309175576,0.0023907,4290.1,4290.0,46.28420505]
[1759309176383,3.2078,4290.7,4290.6,3.71796]
[1759309176583,3.2078,4290.7,4290.6,4.07896]
[1759309176781,3.2078,4290.7,4290.6,9.07896]
[1759309176986,3.10880561,4290.7,4290.6,9.09596505]
[1759309177484,3.11174043,4290.7,4290.6,9.09596505]
[1759309178682,3.11174043,4290.7,4290.6,8.73496505]
[1759309178882,3.11174043,4290.7,4290.6,45.45996505]
[1759309179090,0.00293482,4290.7,4290.6,45.45996505]
[1759309179584,0.00293482,4290.7,4290.6,3.73496505]
[1759309179785,4.82e-06,4290.7,4290.6,3.73496505]
[1759309179989,4.82e-06,4290.7,4290.6,40.45996505]
[1759309180287,4.82e-06,4290.7,4290.6,40.47697731]
[1759309181991,4.82e-06,4290.7,4290.6,3.75197731]
[1759309182286,4.82e-06,4290.7,4290.6,40.47497731]
[1759309182690,4.82e-06,4290.7,4290.6,45.47497731]
[1759309183779,3.2078,4291.4,4291.3,3.71789]
[1759309183984,3.2078,4291.4,4291.3,4.07789]
[1759309184287,3.2078,4291.4,4291.3,4.11190731]
[1759309184490,2.71309,4291.4,4291.3,4.11190731]
[1759309184688,2.17383,4291.4,4291.3,4.11190731]
[1759309184885,3.2078,4292.0,4291.9,3.71783]
[1759309185091,3.21059849,4292.0,4291.9,4.07783]
[1759309185291,5.91129849,4292.0,4291.9,0.45324731]
[1759309185490,5.91129849,4292.0,4291.9,0.81324731]
[1759309185789,5.91129849,4292.0,4291.9,0.45324731]
[1759309185987,10.91129849,4292.0,4291.9,0.03401731]
[1759309186189,10.91129849,4292.0,4291.9,0.39401731]
[1759309186891,10.91129849,4292.0,4291.9,0.81324731]
[1759309187394,11.48470545,4292.0,4291.9,0.81324731]
[1759309187599,11.38470545,4292.0,4291.9,0.81324731]
[1759309188692,8.27690545,4292.0,4291.9,0.81324731]
[1759309188891,11.48470545,4292.0,4291.9,0.81324731]
[1759309189691,11.90392545,4292.0,4291.9,0.45324731]
[1759309189892,6.48470545,4292.0,4291.9,0.81324731]
[1759309190491,3.78400545,4292.0,4291.9,0.81324731]
[1759309190890,3.78400545,4292.0,4291.9,4.11184731]
[1759309191093,6.48470545,4292.0,4291.9,0.45324731]
[1759309191287,6.48470545,4292.0,4291.9,0.81324731]
[1759309191488,3.78400545,4292.0,4291.9,0.81324731]
[1759309192296,3.78400545,4292.0,4291.9,0.81505271]
[1759309192596,3.78400545,4292.0,4291.9,0.81405271]
[1759309192791,3.78400545,4292.0,4291.9,4.11265271]
[1759309196492,0.57620545,4292.0,4291.9,4.11265271]
[1759309196797,3.2078,4292.5,4292.4,0.41918]
[1759309196986,3.2078,4292.5,4292.4,3.98166174]
[1759309197392,3.2078,4292.5,4292.4,4.01748445]
[1759309197593,3.2078,4293.0,4292.8,1.04785]
[1759309197896,3.20968758,4293.0,4292.9,3.92263]
[1759309198094,3.20968758,4293.0,4292.9,3.56363]
[1759309198301,0.00188758,4293.0,4292.9,3.92263]
[1759309198595,0.00188758,4293.0,4292.9,3.95845271]
[1759309199199,0.00188758,4293.0,4292.9,8.95845271]
[1759309199403,0.00188758,4293.0,4292.9,8.9645603]
[1759309199795,0.00188758,4293.0,4292.9,8.6055603]
[1759309199996,0.00188758,4293.0,4292.9,45.3205603]
[1759309200397,0.00188758,4293.0,4292.9,45.33608624]
[1759309200594,3.2078,4294.0,4293.9,3.56353]
[1759309200801,2.67689,4294.0,4293.9,3.92153]
[1759309201102,3.2078,4294.6,4294.5,4.80568]
[1759309201302,3.2078,4294.6,4294.5,5.22113624]
[1759309201506,3.2100431,4294.6,4294.5,5.22298334]
[1759309201896,0.0022431,4294.6,4294.5,5.22298334]
[1759309202499,3.2078,4295.3,4295.2,3.56341]
[1759309202696,3.2078,4295.3,4295.2,3.92141]
[1759309203097,3.2078,4295.8,4295.7,3.56336]
[1759309203292,3.2078,4295.8,4295.7,3.92136]
[1759309203501,3.2078,4295.8,4295.7,3.97881624]
[1759309203701,3.21052017,4295.8,4295.7,3.97881624]
[1759309204600,3.21052017,4295.8,4295.7,3.62081624]
[1759309204795,3.21052017,4295.8,4295.7,3.55995624]
[1759309205004,0.00272017,4295.8,4295.7,3.55995624]
[1759309205199,3.2078,4297.0,4296.5,1.2422]
[1759309205406,3.2078,4297.0,4296.9,3.1445]
[1759309205602,3.2078,4297.0,4296.9,3.5025]
[1759309206103,0.00908387,4297.5,4297.1,3.1445]
[1759309206305,0.01150759,4297.5,4297.2,0.358]
[1759309206510,0.01150759,4297.5,4297.4,3.1445]
[1759309206703,0.01150759,4297.5,4297.4,3.92119]
[1759309207405,0.01150759,4297.5,4297.4,3.56319]
[1759309207602,0.01150759,4297.5,4297.4,3.62064624]
[1759309207907,0.01150759,4297.5,4297.4,0.357]
[1759309208123,10.48267,4291.2,4289.4,3.60142648]
[1759309208309,0.41944,4289.8,4289.1,0.372]
[1759309208608,2.07152205,4290.1,4289.2,0.138]
[1759309208804,2.07152205,4290.2,4290.0,1.2422]
[1759309208999,3.89786704,4290.1,4290.0,1.2422]
[1759309209209,3.89960425,4290.1,4290.0,1.62016607]
[1759309209410,3.89960425,4290.1,4290.0,1.62216607]
[1759309209614,3.89960425,4290.1,4290.0,1.24416607]
[1759309209811,3.89960425,4290.1,4290.0,0.37996607]
[1759309210302,3.89960425,4290.1,4290.0,4.76666607]
[1759309210707,1.65479396,4290.4,4290.0,12.59646607]
[1759309210912,3.2078,4291.1,4290.7,3.1445]
[1759309211119,3.62706,4291.6,4290.8,0.378]
[1759309211410,3.2078,4291.6,4290.9,3.5225]
[1759309211604,3.2078,4291.6,4290.9,0.79732]
[1759309211803,0.00238851,4291.6,4291.0,3.1445]
[1759309212011,0.00238851,4291.6,4291.0,3.5225]
[1759309212200,0.00238851,4291.6,4291.0,3.94181]
[1759309212403,0.00238851,4291.6,4291.1,3.1445]
[1759309212600,0.00238851,4291.6,4291.3,3.1445]
[1759309212804,3.2078,4292.6,4291.5,3.1445]
[1759309213009,3.2078,4292.6,4291.9,0.41922]
[1759309213213,3.2078,4292.6,4292.0,0.378]
[1759309213708,3.2078,4292.6,4292.1,3.1445]
[1759309213913,3.21067673,4292.6,4292.2,0.378]
[1759309214114,3.21067673,4292.6,4292.3,0.378]
[1759309214515,3.21067673,4292.6,4292.5,3.1445]
[1759309214714,0.00287673,4292.6,4292.5,3.5215]
[1759309215414,0.00287673,4292.6,4292.5,3.1445]
[1759309215616,0.00287673,4292.6,4292.5,8.5215]
[1759309215805,0.41906,4293.6,4292.6,3.1445]
[1759309216010,3.62685,4293.7,4293.1,3.1445]
[1759309216205,3.62685,4293.7,4293.0,1.2422]
[1759309216412,3.62685,4293.7,4286.7,3.2078]
[1759309216413,0.41972,4286.8,4286.7,3.2078]
[1759309216613,1.3427,4287.6,4286.1,0.388]
[1759309216817,1.3427,4287.6,4284.6,36.35925365]
[1759309216818,3.20726342,4286.8,4286.7,0.00168689]
[1759309217318,0.00196342,4286.8,4286.7,0.00168689]
[1759309217513,3.20726342,4286.8,4286.7,0.00168689]
[1759309217717,4.54996342,4286.8,4286.7,0.00168689]
[1759309217920,4.54996342,4286.8,4286.7,0.39468689]
[1759309218314,4.54996342,4286.8,4286.7,0.00168689]
[1759309218622,4.54996342,4286.8,4286.7,0.39368689]
[1759309220711,0.00196342,4286.8,4286.7,5.39368689]
[1759309220923,3.0837,4287.7,4286.7,5.00168689]
[1759309221114,3.0837,4287.7,4286.8,0.391]
[1759309221316,3.0837,4287.7,4287.0,0.41971]
[1759309221516,3.0837,4287.7,4287.1,0.392]
[1759309221722,3.2078,4287.9,4287.4,0.41966]
[1759309222023,3.20987676,4287.9,4287.5,0.392]
[1759309222820,3.20987676,4287.9,4287.6,0.391]
[1759309224424,3.20987676,4287.9,4287.6,0.41964]
[1759309224622,0.00207676,4287.9,4287.8,0.41963]
[1759309224922,3.20987676,4287.9,4287.4,0.41966]
[1759309225118,3.3644,4287.8,4287.5,0.41965]
[1759309225320,3.3644,4287.8,4287.6,0.39]
[1759309225521,3.3644,4287.8,4287.7,0.41964]
[1759309225824,3.3644,4287.8,4287.7,0.39]
[1759309226420,3.20987676,4287.9,4287.8,0.41963]
[1759309226616,3.20987676,4287.9,4287.8,0.80863]
[1759309226617,0.00207676,4287.9,4287.8,0.80863]
[1759309226818,3.2078,4289.2,4288.0,1.04903]
[1759309227017,6.5722,4289.2,4288.9,0.41952]
[1759309227222,3.3644,4289.1,4289.0,36.761]
[1759309227827,3.3660776,4289.1,4289.0,36.761]
[1759309228231,3.3660776,4289.1,4289.0,36.372]
[1759309228526,3.3660776,4289.1,4289.0,36.76]
[1759309229122,0.0016776,4289.1,4289.0,36.76]
[1759309229321,3.3660776,4289.1,4289.0,36.372]
[1759309229528,3.3660776,4289.1,4289.0,36.76]
[1759309229726,3.3660776,4289.1,4289.0,36.372]
[1759309229923,1.3224,4289.6,4289.0,36.372]
[1759309229924,3.3644,4289.5,4289.0,36.76]
[1759309230122,3.3644,4289.2,4289.0,36.372]
[1759309230322,3.2078,4289.3,4289.0,36.372]
[1759309230627,3.3644,4289.2,4289.1,0.387]
[1759309230923,3.3670702,4289.2,4289.1,0.387]
[1759309232330,0.0026702,4289.2,4289.1,0.387]
[1759309232526,3.3670702,4289.2,4289.0,36.372]
[1759309232732,3.3670702,4289.2,4289.1,0.386]
[1759309233029,0.0026702,4289.2,4289.1,0.46796602]
[1759309233235,6.5722,4289.8,4289.7,0.41944]
[1759309233433,1.2588,4290.0,4289.9,0.41942]
[1759309233635,3.2078,4290.3,4289.9,0.41942]
[1759309233939,3.2078,4290.3,4290.0,0.386]
[1759309234134,3.2094579,4290.3,4290.0,0.38797218]
[1759309234331,3.3644,4290.2,4290.0,0.80738218]
[1759309234729,3.3644,4290.2,4290.0,0.00197218]
[1759309234730,3.3644,4290.1,4290.0,0.00197218]
[1759309234928,3.3644,4290.1,4290.0,0.38697218]
[1759309235724,3.3644,4290.1,4290.0,0.40655219]
[1759309236329,3.3644,4290.1,4290.0,0.40555219]
[1759309236531,3.3644,4290.1,4290.0,0.02155219]
[1759309236826,3.78381,4290.1,4290.0,0.02155219]
[1759309237032,3.78381,4290.1,4290.0,0.40555219]
[1759309237231,3.78381,4290.1,4290.0,0.02155219]
[1759309237526,3.78381,4290.1,4290.0,0.40455219]
[1759309237834,3.3644,4290.1,4290.0,0.40455219]
[1759309238423,3.92006904,4290.1,4290.0,0.02155219]
[1759309238836,3.91729815,4290.1,4290.0,0.40355219]
[1759309239024,3.3644,4290.1,4290.0,0.40355219]
[1759309239230,3.91729138,4290.1,4290.0,0.40355219]
[1759309239431,3.3644,4290.1,4290.0,0.40355219]
[1759309239831,3.3644,4290.1,4290.0,0.02155219]
[1759309240336,3.3644,4290.1,4290.0,0.40255219]
[1759309241534,3.3644,4290.1,4288.7,1.04886]
[1759309241535,1.2588,4289.5,4288.7,1.04886]
[1759309241738,1.2588,4290.0,4289.9,0.41943]
[1759309241942,1.80511041,4290.0,4289.9,0.79943]
[1759309242439,1.2588,4290.0,4289.9,0.79943]
[1759309242634,1.2588,4290.0,4289.9,0.80241518]
[1759309242830,1.2588,4290.0,4289.9,0.42241518]
[1759309243036,1.2588,4290.0,4289.9,37.16941518]
[1759309243435,1.2588,4290.0,4289.9,37.16841518]
[1759309243636,1.2588,4290.6,4290.5,0.41937]
[1759309243837,4.4666,4291.0,4290.5,0.379]
[1759309244037,0.41935,4290.7,4290.5,0.379]
[1759309244232,4.4666,4291.0,4290.5,0.379]
[1759309244438,0.54431213,4290.9,4290.5,0.379]
[1759309244640,0.54431213,4290.8,4290.5,0.379]
[1759309244935,0.54324731,4290.7,4290.6,0.379]
[1759309245339,0.96259731,4290.7,4290.6,0.379]
[1759309245540,0.54324731,4290.7,4290.6,0.379]
[1759309245736,3.90764731,4290.7,4290.6,0.379]
[1759309246737,3.90764731,4290.7,4290.4,0.41938]
[1759309246944,0.00267021,4290.9,4290.8,0.41934]
[1759309247140,0.00267021,4290.9,4290.8,3.52564]
[1759309247334,0.54044021,4290.9,4290.8,3.52564]
[1759309247538,0.00267021,4290.9,4290.8,3.52564]
[1759309249938,0.00267021,4290.9,4290.8,3.90264]
[1759309251451,3.3644,4292.0,4291.2,3.1063]
[1759309251751,3.8740604,4291.9,4291.8,0.41924]
[1759309251944,3.8740604,4291.9,4291.8,0.79424]
[1759309252242,3.2078,4292.1,4291.8,0.79424]
[1759309252243,3.2078,4292.1,4292.0,3.52552]
[1759309252439,0.00268206,4292.1,4292.0,44.42072]
[1759309252746,2.06e-06,4292.1,4292.0,44.50315453]
[1759309253941,3.34710206,4292.1,4292.0,36.78122]
[1759309254249,3.34710206,4292.1,4292.0,37.15522]
[1759309254552,3.34710206,4292.1,4292.0,36.78122]
[1759309254841,3.34710206,4292.1,4292.0,37.15522]
[1759309255046,3.34710206,4292.1,4292.0,37.15422]
[1759309255440,3.34710206,4292.1,4292.0,36.78122]
[1759309255846,3.34710206,4292.1,4292.0,37.15422]
[1759309256243,2.06e-06,4292.1,4292.0,40.36202]